Department Family,Entity,Date,Expense Type,Expense Area,Supplier,Transaction Number,Amount,,
DOH,London Ambulance Service NHS Trust,01/08/2018,Building Maint-Planned,Hillingdon Estates,Abbey Wood Grange,410057,27210.00,,
DOH,London Ambulance Service NHS Trust,01/08/2018,Vehicle Recovery,Fleet Support Services,The Mansfield Group,410094,53873.73,,
DOH,London Ambulance Service NHS Trust,20/08/2018,Computer Hardware,Capital,Creative Video Productions Ltd,410259,34261.92,,
DOH,London Ambulance Service NHS Trust,03/08/2018,Cleaning Of Vehicles Makeready,Veh Prep Service Expansion,Interserve Hospital Services,410524,368270.00,,
DOH,London Ambulance Service NHS Trust,07/08/2018,Contract Labour,Vehicle Resouce Centre,Churchill Contract Services Ltd,411234,40331.15,,
DOH,London Ambulance Service NHS Trust,07/08/2018,Contract Labour,Vehicle Resouce Centre,Churchill Contract Services Ltd,411235,44665.6,,
DOH,London Ambulance Service NHS Trust,03/08/2018,Cleaning Of Vehicles Makeready,Veh Prep Service Expansion,Interserve Hospital Services,411245,368270.00,,
DOH,London Ambulance Service NHS Trust,07/08/2018,Contract Labour,Vehicle Resouce Centre,Churchill Contract Services Ltd,411455,45823.43,,
DOH,London Ambulance Service NHS Trust,24/08/2018,Lease Costs For Ops Vehicles,Non Emergency Transport,Tp Leasing Ltd,414138,42368.02,,
DOH,London Ambulance Service NHS Trust,24/08/2018,Lease Costs For Ops Vehicles,Non Emergency Transport,Tp Leasing Ltd,414139,74144.03,,
DOH,London Ambulance Service NHS Trust,01/08/2018,Taxis & Mini Cabs,Sub-Contracted Transport,Addison Lee,414574,40472.89,,
DOH,London Ambulance Service NHS Trust,01/08/2018,Taxis & Mini Cabs,Sub-Contracted Transport,Addison Lee,414575,35543.53,,
DOH,London Ambulance Service NHS Trust,01/08/2018,Lease Costs For Ops Vehicles,Non Emergency Transport,Tp Leasing Ltd,414581,34424.02,,
DOH,London Ambulance Service NHS Trust,01/08/2018,Tyres,Fleet Support Services,Ats Euromaster Ltd,414584,54364.39,,
DOH,London Ambulance Service NHS Trust,10/08/2018,Vehicles,Capital,Wilker Auto Conversions,414729,59983.00,,
DOH,London Ambulance Service NHS Trust,10/08/2018,Vehicles,Capital,Volkswagen Group Uk Ltd,414782,43590.31,,
DOH,London Ambulance Service NHS Trust,17/08/2018,Phone & Fax Line Rental,Networks,Bt Global Services,414784,31869.74,,
DOH,London Ambulance Service NHS Trust,15/08/2018,Network Equipment & Services,Capital,Principle Communications Ltd,415401,47138.4,,
DOH,London Ambulance Service NHS Trust,10/08/2018,Vehicles,Capital,Wilker Auto Conversions,415422,59983.00,,
DOH,London Ambulance Service NHS Trust,08/08/2018,Technical Support - Contract,Capita Contract,Capita Secure Information Solutions Ltd,415450,58898.51,,
DOH,London Ambulance Service NHS Trust,10/08/2018,Vehicles,Capital,Volkswagen Group Uk Ltd,415578,43590.31,,
DOH,London Ambulance Service NHS Trust,10/08/2018,Vehicles,Capital,Volkswagen Group Uk Ltd,415635,43590.31,,
DOH,London Ambulance Service NHS Trust,24/08/2018,Cleaning Of Vehicles Makeready,Veh Prep Service Expansion,Interserve Hospital Services,416331,258074.86,,
DOH,London Ambulance Service NHS Trust,17/08/2018,Phone & Fax Line Rental,Networks,Bt Teleworker,416349,75814.56,,
DOH,London Ambulance Service NHS Trust,17/08/2018,Mobile Phone Rental,Telecommunications,Vodafone Corporate Limited,416374,29107.46,,
DOH,London Ambulance Service NHS Trust,17/08/2018,Private Ambulance Hire,Ops Central - Private Amb,Falck Uk Ambulance Service Ltd,416419,71203.63,,
DOH,London Ambulance Service NHS Trust,02/08/2018,Data Network Rental,Networks,Bt Global Services,416716,31869.74,,
DOH,London Ambulance Service NHS Trust,17/08/2018,Private Ambulance Hire,Sub-Contracted Transport,Falck Uk Ambulance Service Ltd,417458,66034.13,,
DOH,London Ambulance Service NHS Trust,22/08/2018,Vehicle Recovery,Fleet Support Services,The Mansfield Group,417563,54521.52,,
DOH,London Ambulance Service NHS Trust,22/08/2018,Private Ambulance Hire,Ops Central - Private Amb,Falck Uk Ambulance Service Ltd,417872,67300.66,,
DOH,London Ambulance Service NHS Trust,22/08/2018,Private Ambulance Hire,Ops Central - Private Amb,Falck Uk Ambulance Service Ltd,417875,65231.98,,
DOH,London Ambulance Service NHS Trust,22/08/2018,Private Ambulance Hire,Ops Central - Private Amb,Falck Uk Ambulance Service Ltd,417877,70266.42,,
DOH,London Ambulance Service NHS Trust,22/08/2018,Private Ambulance Hire,Ops Central - Private Amb,Falck Uk Ambulance Service Ltd,417880,69921.34,,
DOH,London Ambulance Service NHS Trust,22/08/2018,Data Hosting Rental,Systems,Crown Hosting Data Centres Ltd,418262,27727.2,,
DOH,London Ambulance Service NHS Trust,22/08/2018,Vehicles,Capital,Volkswagen Group Uk Ltd,418336,43590.31,,
DOH,London Ambulance Service NHS Trust,22/08/2018,Vehicles,Capital,Volkswagen Group Uk Ltd,418340,43590.31,,
DOH,London Ambulance Service NHS Trust,22/08/2018,Phone & Fax Line Rental,Networks,Bt Global Services,419243,63162.57,,
DOH,London Ambulance Service NHS Trust,15/08/2018,Buildings,Capital,Maracom Ltd,419454,46993.08,,
DOH,London Ambulance Service NHS Trust,01/08/2018,Ensign Insurance Debtor,Control Accounts,QBE International Insurance T/A Ensign,55551,246231.66,,
DOH,London Ambulance Service NHS Trust,01/08/2018,Medical Gas,Director Of Ops,British Oxygen,55908,113446.93,,
DOH,London Ambulance Service NHS Trust,01/08/2018,Fuel,Director Of Ops,BP Oil,56255,224466.01,,
DOH,London Ambulance Service NHS Trust,20/08/2018,Child Care Arrangements,Payroll,Computerserve Vouchers,55701,28788.76,,
DOH,London Ambulance Service NHS Trust,15/08/2018,CNST Contributions,Legal Services,NHSLA,55687,362082.5,,
DOH,London Ambulance Service NHS Trust,15/08/2018,Liability to 3rd Party Scheme,Legal Services,NHSLA,55687,40724.1,,
DOH,London Ambulance Service NHS Trust,15/08/2018,Property Expenses Scheme,Legal Services,NHSLA,55687,2431.5,,
DOH,London Ambulance Service NHS Trust,15/08/2018,Fuel,Director Of Ops,BP Oil,55687,243372.5,,
